bitfinex/quotes_ETHUSD_20251120
["timestamp","ask_amount","ask_price","bid_price","bid_amount"]
[1763633201805,13.66400236,3004.4,3004.3,0.001]
[1763633202819,1.31249664,3004.1,3003.1,0.4814]
[1763633203019,0.8824784,3003.3,3003.1,0.4814]
[1763633203221,0.82504723,3003.2,3003.0,0.1924]
[1763633203420,0.71204723,3003.1,3003.0,0.6738]
[1763633203898,1.4188738,3003.1,3003.0,1.1317]
[1763633204909,5.65575888,3003.1,3003.0,1.1317]
[1763633205124,0.30654323,3003.1,3003.0,1.1317]
[1763633205430,1.17663787,3003.9,3003.0,1.1317]
[1763633205431,3.3294755,3003.5,3003.0,1.1317]
[1763633205663,0.113,3003.4,3003.1,0.4814]
[1763633206124,0.113,3003.4,3003.3,0.4579]
[1763633206301,1.01999264,3003.4,3003.3,0.4579]
[1763633206502,1.01999264,3003.4,3003.3,0.9393]
[1763633206901,4.34955247,3003.4,3003.3,0.9393]
[1763633207092,0.90699264,3003.4,3003.3,0.9393]
[1763633207305,0.113,3003.4,3003.3,0.9393]
[1763633207507,6.65756798,3004.1,3003.3,1.36621908]
[1763633207719,0.113,3004.0,3003.4,0.4814]
[1763633208239,1.22448781,3004.0,3003.9,0.4579]
[1763633208436,1.22448781,3004.0,3003.9,0.9393]
[1763633208795,4.55338261,3004.0,3003.9,0.9393]
[1763633208996,4.58147211,3004.0,3003.9,0.9393]
[1763633209198,4.55418261,3004.0,3003.9,0.9393]
[1763633209415,5.46117525,3004.0,3003.9,0.9393]
[1763633209835,5.46117525,3004.0,3003.4,0.4814]
[1763633209836,1.31249664,3003.9,3003.4,0.4814]
[1763633210115,0.0280895,3003.8,3003.4,0.4814]
[1763633210327,1.14037731,3003.8,3003.7,0.4579]
[1763633210548,1.22528781,3003.8,3003.7,0.4579]
[1763633210754,1.22528781,3003.8,3003.7,0.9393]
[1763633210953,6.34582098,3003.8,3003.7,0.9393]
[1763633211251,6.37391048,3003.8,3003.7,0.9393]
[1763633211557,1.31249664,3003.7,3003.2,0.4814]
[1763633211721,0.405504,3003.5,3003.2,0.4814]
[1763633211919,0.405504,3003.3,3003.2,0.4814]
[1763633212359,0.405504,3003.3,3003.2,0.9393]
[1763633212528,1.22676239,3003.3,3003.2,0.9393]
[1763633212718,0.518504,3003.3,3003.2,0.9393]
[1763633212920,4.75516733,3003.3,3003.2,0.9393]
[1763633213153,5.46342572,3003.3,3003.2,0.9393]
[1763633214715,6.40272572,3003.3,3003.2,0.9393]
[1763633216460,6.28972572,3003.3,3003.2,0.9393]
[1763633216765,4.34966333,3003.3,3003.2,0.9393]
[1763633216963,5.05841714,3003.3,3003.2,0.9393]
[1763633217371,5.36607378,3003.3,3003.2,0.9393]
[1763633218133,5.36591903,3003.3,3003.2,0.9393]
[1763633219173,5.25284923,3003.3,3003.2,0.9393]
[1763633219341,5.36584923,3003.3,3003.2,0.9393]
[1763633220831,5.25284923,3003.3,3003.2,0.9393]
[1763633221037,5.36584923,3003.3,3003.2,0.9393]
[1763633221657,5.25284923,3003.3,3003.2,0.9393]
[1763633221865,5.36584923,3003.3,3003.2,0.9393]
[1763633222240,1.92317854,3003.3,3003.2,0.9393]
[1763633222443,1.32757948,3003.3,3003.2,0.9393]
[1763633222636,1.01999264,3003.3,3003.2,1.38556258]
[1763633222948,4.65723888,3003.3,3003.2,0.9393]
[1763633223344,4.54423888,3003.3,3003.2,0.9393]
[1763633223570,4.65723888,3003.3,3003.2,0.9393]
[1763633224991,1.32756819,3003.3,3003.2,0.9393]
[1763633225352,4.65723888,3003.3,3003.2,0.9393]
[1763633225679,4.54423888,3003.3,3003.2,0.9393]
[1763633225844,4.65723888,3003.3,3003.2,0.9393]
[1763633230683,5.39445595,3003.3,3003.2,0.9393]
[1763633230876,5.77187045,3003.3,3003.2,0.4579]
[1763633231076,6.71117045,3003.3,3003.2,0.4579]
[1763633231280,6.71117045,3003.3,3003.2,0.957]
[1763633231665,6.71117045,3003.3,3003.2,0.4579]
[1763633231869,1.31249664,3003.2,3003.1,0.001]
[1763633232090,2.36218926,3003.2,3003.1,0.001]
[1763633232288,2.36138926,3003.2,3003.1,0.001]
[1763633232668,3.74311225,3003.2,3003.1,0.001]
[1763633232874,2.85778926,3003.2,3003.1,0.001]
[1763633233189,4.62274607,3003.2,3003.1,0.001]
[1763633233388,9.99367065,3001.9,3001.5,0.4991]
[1763633233591,0.82607955,3001.8,3001.5,0.4991]
[1763633233897,0.405504,3001.6,3001.5,0.4991]
[1763633234267,0.405504,3001.6,3001.5,0.9772]
[1763633234576,0.71286799,3001.6,3001.5,0.9772]
[1763633234897,0.405504,3001.6,3001.5,0.9772]
[1763633235305,0.405504,3001.6,3001.5,0.4781]
[1763633235608,1.31249664,3001.4,3000.9,0.6919]
[1763633235902,0.405504,3001.2,3001.0,0.4991]
[1763633236101,0.405504,3001.2,3001.1,0.4781]
[1763633236491,0.518504,3001.2,3001.1,0.9772]
[1763633236691,0.88578273,3002.0,3001.1,0.9772]
[1763633236891,0.88578273,3002.0,3000.9,0.1928]
[1763633236892,1.42549664,3001.7,3001.2,0.4991]
[1763633237093,0.90699264,3002.2,3001.7,0.4781]
[1763633237281,0.90699264,3002.2,3001.8,0.4991]
[1763633237282,0.30687383,3002.1,3001.8,0.4991]
[1763633237483,1.11352861,3002.0,3001.8,0.4991]
[1763633237803,1.01999264,3001.9,3001.8,0.4991]
[1763633238101,3.33103293,3002.1,3001.8,1.166]
[1763633238102,4.23800844,3002.1,3001.8,1.166]
[1763633238271,1.31249664,3002.1,3002.0,0.4781]
[1763633238467,0.82534851,3002.1,3002.0,0.4781]
[1763633238678,3.84950563,3002.1,3002.0,0.4781]
[1763633239004,5.0633878,3002.1,3002.0,0.4781]
[1763633240206,5.06333244,3002.1,3002.0,0.9772]
[1763633240508,5.06333244,3002.1,3002.0,0.4781]
[1763633240703,1.31249664,3002.0,3001.8,0.1888]
[1763633241008,1.31249664,3002.0,3001.8,0.6879]
[1763633241184,1.31249664,3002.0,3001.9,0.4781]
[1763633241503,4.64360923,3002.0,3001.9,0.9772]
[1763633244305,3.3310121,3002.1,3001.9,0.9772]
[1763633244606,3.33044694,3002.6,3002.0,0.9772]
[1763633244906,0.113,3002.5,3002.1,0.4781]
[1763633245081,1.01999264,3002.5,3002.1,0.4991]
[1763633245283,1.01999264,3002.5,3002.4,0.4781]
[1763633245806,0.113,3002.5,3002.4,0.9772]
[1763633246005,4.3505505,3002.5,3002.4,0.9772]
[1763633246207,4.7560545,3002.5,3002.4,0.9772]
[1763633246782,4.7560545,3002.5,3002.4,0.4781]
[1763633246997,4.7560545,3002.5,3002.4,0.9772]
[1763633247203,4.6430545,3002.5,3002.4,0.9772]
[1763633247892,4.7560545,3002.5,3002.4,0.9772]
[1763633248622,0.90699264,3002.5,3002.4,0.9772]
[1763633249031,4.3505505,3002.5,3002.4,0.9772]
[1763633249394,1.31249664,3002.4,3001.7,0.6782]
[1763633249715,0.405504,3002.2,3001.8,0.4977]
[1763633250094,0.405504,3002.2,3002.1,0.4585]
[1763633250295,0.90699264,3002.2,3002.1,0.4585]
[1763633250495,4.35088332,3002.2,3002.1,0.4585]
[1763633250757,4.23788332,3002.2,3002.1,0.9562]
[1763633250931,0.90699264,3002.2,3002.1,0.9562]
[1763633251231,4.35088332,3002.2,3002.1,0.9562]
[1763633251533,4.23788332,3002.2,3002.1,0.4585]
[1763633251713,0.90699264,3002.1,3001.8,0.4977]
[1763633252026,0.113,3002.0,3001.8,0.4977]
[1763633252231,3.35898018,3002.2,3001.9,0.4585]
[1763633252414,0.90699264,3002.4,3002.1,0.4585]
[1763633252614,0.113,3002.3,3002.1,0.4585]
[1763633253018,0.113,3002.3,3001.8,0.4977]
[1763633253019,3.33045407,3002.6,3002.3,0.4585]
[1763633253325,3.33045407,3002.6,3001.7,6.84331565]
[1763633253326,3.73595807,3002.6,3002.5,0.4585]
[1763633253525,3.84895807,3002.6,3002.5,0.9562]
[1763633253730,4.23744671,3002.6,3002.5,0.9562]
[1763633254033,1.01999264,3002.6,3002.5,0.9562]
[1763633254229,4.35043958,3002.6,3002.5,0.9562]
[1763633254435,1.01999264,3002.6,3002.5,0.9562]
[1763633254639,0.90699264,3002.6,3002.5,0.9562]
[1763633254818,4.23743958,3002.6,3002.5,0.4585]
[1763633255018,0.88578273,3003.4,3002.5,0.9562]
[1763633255250,0.419986,3003.3,3002.8,0.4585]
[1763633255537,0.4585,3003.1,3002.8,0.4585]
[1763633255727,0.0280895,3003.0,3002.8,0.9562]
[1763633255921,0.113,3002.9,3002.8,0.4977]
[1763633256118,0.113,3002.9,3002.8,0.9562]
[1763633256638,1.01999264,3002.9,3002.8,0.9562]
[1763633257629,1.01999264,3002.9,3002.8,0.4585]
[1763633258030,1.84239748,3002.9,3002.2,0.4977]
[1763633258208,0.30699897,3002.8,3001.8,7.14110584]
[1763633258406,3.33044694,3002.6,3002.0,3.33111259]
[1763633258608,3.33044694,3002.6,3001.9,0.4785]
[1763633258837,4.23743958,3002.6,3002.5,0.4674]
[1763633259614,4.23743958,3002.6,3002.5,0.9459]
[1763633260039,4.35043958,3002.6,3002.5,0.9459]
[1763633260629,0.90699264,3002.6,3002.5,0.9459]
[1763633260944,4.23743958,3002.6,3002.5,0.9459]
[1763633261116,4.35043958,3002.6,3002.5,0.9459]
[1763633261844,1.01999264,3002.6,3002.5,0.9459]
[1763633262044,4.35043958,3002.6,3002.5,0.9459]
[1763633262250,4.35043958,3002.6,3002.5,0.4674]
[1763633262642,0.90699264,3002.5,3002.2,0.4785]
[1763633262945,0.93508214,3002.5,3002.2,0.4785]
[1763633263146,0.93508214,3002.5,3002.4,0.4674]
[1763633263549,1.24240539,3002.5,3002.4,0.4674]
[1763633264437,1.24240539,3002.5,3002.4,0.9459]
[1763633264631,7.87543161,3002.5,3001.9,0.4785]
[1763633264835,0.30732325,3002.4,3001.9,0.4785]
[1763633265034,0.33541275,3002.4,3001.9,0.4785]
[1763633265329,0.405504,3002.3,3001.8,0.001]
[1763633265531,0.405504,3002.1,3001.8,0.001]
[1763633265949,0.71282725,3002.1,3001.8,0.001]
[1763633266150,0.4785,3002.0,3001.8,0.001]
[1763633266450,0.78582325,3002.0,3001.8,0.4795]
[1763633266644,4.35121619,3001.9,3001.8,0.4795]
[1763633266945,4.65853944,3001.9,3001.8,0.4795]
[1763633267147,1.32731589,3001.9,3001.8,0.9469]
[1763633267351,1.01999264,3001.9,3001.8,0.9469]
[1763633267715,1.21457612,3001.9,3001.8,0.4684]
[1763633267917,1.32757612,3001.9,3001.8,0.4684]
[1763633268954,4.65879967,3001.9,3001.8,0.4684]
[1763633269272,4.65879967,3001.9,3001.8,0.9469]
[1763633269273,4.54579967,3001.9,3001.8,0.9469]
[1763633269423,4.65879967,3001.9,3001.8,0.9469]
[1763633269643,4.54579967,3001.9,3001.8,0.9469]
[1763633269843,1.32757612,3001.9,3001.8,0.9469]
[1763633270150,4.65879967,3001.9,3001.8,0.9469]
[1763633270877,4.54579967,3001.9,3001.8,0.9469]
[1763633271279,4.65879967,3001.9,3001.8,0.9469]
[1763633271650,4.54579967,3001.9,3001.8,0.9469]
[1763633271973,4.65879967,3001.9,3001.8,0.9469]
[1763633272379,4.54579967,3001.9,3001.8,0.9469]
[1763633272582,4.65879967,3001.9,3001.8,0.9469]
[1763633273479,1.21457612,3001.9,3001.8,0.9469]
[1763633273679,1.32757612,3001.9,3001.8,0.9469]
[1763633273880,4.65879967,3001.9,3001.8,0.9469]
[1763633274175,4.65879967,3001.9,3001.8,0.4684]
[1763633274378,4.54579967,3001.9,3001.8,0.9469]
[1763633274563,4.65879967,3001.9,3001.8,0.9469]
[1763633274945,4.54579967,3001.9,3001.8,0.9469]
[1763633275143,4.65879967,3001.9,3001.8,0.9469]
[1763633275546,4.65879967,3001.9,3001.8,0.001]
[1763633275980,4.65879967,3001.9,3001.8,0.9469]
[1763633276962,4.54579967,3001.9,3001.8,0.9469]
[1763633277390,1.21457612,3001.9,3001.8,0.9469]
[1763633277789,1.01999264,3001.9,3001.8,0.9469]
[1763633277994,0.90699264,3002.4,3001.8,4.70602656]
[1763633278196,0.90699264,3002.4,3002.3,0.6581]
[1763633278402,1.21478659,3002.4,3002.3,0.6581]
[1763633278703,2.32805499,3002.4,3002.3,1.1366]
[1763633278901,3.03725151,3002.4,3002.3,1.1366]
[1763633279101,6.3679203,3002.4,3002.3,1.1366]
[1763633279278,6.3960098,3002.4,3002.3,0.4674]
[1763633279483,9.80277859,3002.4,3002.1,0.1907]
[1763633279683,1.01699047,3002.3,3001.8,0.001]
[1763633279895,0.78819395,3002.2,3001.8,0.001]
[1763633280096,0.78739395,3002.2,3001.8,0.001]
[1763633280299,0.4335935,3002.1,3001.8,0.001]
[1763633280503,0.113,3002.0,3001.8,0.001]
[1763633280881,1.15788434,3002.0,3001.8,0.001]
[1763633281082,4.54601014,3001.9,3001.8,0.001]
[1763633281282,4.57409964,3001.9,3001.8,0.001]
[1763633281508,6.05007486,3001.9,3001.8,0.001]
[1763633281880,5.57457486,3001.9,3001.8,0.4684]
[1763633282208,5.65948536,3001.9,3001.8,0.4684]
[1763633282506,5.65948536,3001.9,3001.8,0.9469]
[1763633282696,5.65948536,3001.9,3001.8,0.4684]
[1763633282902,5.54648536,3001.9,3001.8,0.4684]
[1763633283107,2.21526181,3001.9,3001.8,0.9469]
[1763633283275,0.88578273,3002.7,3001.8,10.94090359]
[1763633283475,0.88578273,3002.7,3001.9,2.05398879]
[1763633283674,0.002,3002.9,3001.9,2.05398879]
[1763633283909,0.002,3002.9,3002.8,0.4674]
[1763633284125,0.115,3002.9,3002.8,0.4674]
[1763633284277,0.115,3002.9,3002.8,0.9459]
[1763633286311,3.44511422,3002.9,3002.8,0.4674]
[1763633286492,3.44511422,3002.9,3002.6,0.1907]
[1763633286687,3.44511422,3002.9,3002.6,0.6692]
[1763633287092,0.002,3002.9,3002.6,0.6692]
[1763633287306,0.113,3002.8,3002.6,0.6692]
[1763633287481,0.002,3002.9,3002.7,0.9459]
[1763633287810,0.002,3002.9,3002.8,0.4674]
[1763633287991,0.115,3002.9,3002.8,0.9332]
[1763633288920,0.002,3002.9,3002.8,0.9332]
[1763633289101,0.115,3002.9,3002.8,1.37863416]
[1763633289299,0.115,3002.9,3002.8,0.9332]
[1763633291721,0.002,3002.9,3002.8,0.9332]
[1763633291903,0.115,3002.9,3002.8,0.9332]
[1763633292317,0.115,3002.9,3002.8,0.4674]
[1763633292521,0.115,3002.9,3002.8,0.9332]
[1763633293392,1.02199264,3002.9,3002.8,0.9332]
[1763633293591,1.02199264,3002.9,3002.6,0.1907]
[1763633293827,1.02199264,3002.9,3002.8,0.4738]
[1763633294897,0.115,3002.9,3002.8,0.4738]
[1763633295094,0.115,3002.9,3002.8,0.9396]
[1763633297135,0.115,3002.9,3002.8,0.4738]
[1763633297136,4.35210686,3002.9,3002.8,0.4738]
[1763633297821,1.02199264,3002.9,3002.8,0.4738]
[1763633297997,4.35210686,3002.9,3002.8,0.9396]
[1763633298440,1.02199264,3002.9,3002.8,0.9396]
[1763633298798,0.002,3002.9,3002.8,0.9396]
[1763633299041,0.002,3002.9,3002.8,4.30312737]
[1763633299243,0.002,3002.9,3002.8,5.08553755]
[1763633300827,0.002,3002.9,3002.8,5.0522353]
[1763633301640,0.002,3003.3,3002.8,18.27631113]
[1763633301839,0.002,3003.3,3003.2,0.4738]
[1763633302046,0.002,3003.3,3003.2,0.9396]
[1763633303368,0.002,3003.3,3003.2,4.26938156]
[1763633303534,0.002,3003.3,3003.2,5.02930842]
[1763633304354,0.0012,3003.3,3003.2,5.06260623]
[1763633304518,0.0012,3003.3,3003.2,5.02930842]
[1763633304951,0.0012,3003.3,3003.2,5.06260623]
[1763633305256,0.0012,3003.3,3003.2,5.02930842]
[1763633307459,0.0012,3003.3,3003.2,19.36596023]
[1763633307775,0.002,3003.6,3003.2,16.63605997]
[1763633307941,0.002,3003.6,3003.5,0.4992]
[1763633308451,0.002,3003.6,3003.5,0.9946]
[1763633308837,0.002,3003.6,3003.5,5.78833917]
[1763633309456,0.002,3003.6,3003.5,9.11778814]
[1763633309869,0.002,3003.6,3003.5,3.82864897]
[1763633310177,0.463,3003.6,3002.8,5.57614935]
[1763633310474,0.463,3003.6,3001.9,0.13427979]
[1763633310475,0.1444,3002.9,3002.2,0.4954]
[1763633310681,0.1444,3002.9,3002.0,3.33111259]
[1763633310682,0.4415,3002.7,3002.0,3.33111259]
[1763633310849,0.4415,3002.7,3002.1,0.38275126]
[1763633311243,0.9051,3002.7,3002.1,0.38275126]
[1763633311442,4.23551955,3002.7,3002.1,0.38275126]
[1763633311674,4.23551955,3002.7,3002.0,3.33101839]
[1763633312278,7.5659391,3002.7,3001.9,3.3321699]
[1763633312444,0.4636,3002.6,3001.9,0.001]
[1763633312749,1.37059264,3002.6,3001.9,0.001]
[1763633312950,0.4424,3002.0,3001.9,0.001]
[1763633313142,0.5554,3002.0,3001.9,0.001]
[1763633314247,4.34991259,3002.0,3001.9,0.001]
[1763633314650,5.25690523,3002.0,3001.9,0.001]
[1763633315503,5.25690523,3002.0,3001.1,0.4954]
[1763633315504,0.4636,3001.9,3001.1,3.79477045]
[1763633315659,0.4424,3002.0,3001.1,7.126882]
[1763633315959,0.113,3001.9,3001.2,0.03332]
[1763633316167,0.113,3001.8,3001.2,0.03332]
[1763633316359,0.113,3001.7,3001.3,0.6697472]
[1763633316589,0.113,3001.9,3001.3,0.70306609]
[1763633316772,3.3306875,3002.4,3002.0,0.4992]
[1763633316974,0.4636,3003.0,3002.0,0.4992]
[1763633317174,3.44322512,3002.8,3002.1,0.1822]
[1763633317389,0.90699264,3002.7,3002.1,0.1822]
[1763633317554,3.33044694,3002.6,3002.1,0.1822]
[1763633317986,3.79404694,3002.6,3002.1,0.1822]
[1763633318665,0.4636,3002.6,3002.1,3.51316927]
[1763633318988,3.47191516,3002.9,3002.1,0.6495]
[1763633318989,0.113,3002.5,3002.1,0.6495]
[1763633319174,0.113,3002.5,3002.0,3.33106304]
[1763633319380,0.113,3002.5,3001.9,0.001]
[1763633319578,3.90823021,3002.5,3001.9,0.001]
[1763633320091,7.23886042,3002.5,3001.9,0.001]
[1763633320276,0.4646,3002.4,3001.9,0.001]
[1763633321058,0.113,3002.3,3001.9,0.4683]
[1763633321988,3.33068729,3002.4,3001.9,0.001]
[1763633322168,0.113,3002.2,3001.9,3.33221967]
[1763633322494,3.33059819,3002.5,3001.9,3.33221967]
[1763633322690,0.113,3002.4,3002.1,0.4938]
[1763633323689,3.7950958,3002.6,3002.1,0.4938]
[1763633323875,3.7950958,3002.6,3002.1,1.1458]
[1763633323876,3.3304958,3002.6,3002.1,1.1458]
[1763633324078,3.3304958,3002.6,3002.2,0.4673]
[1763633324079,0.113,3002.5,3002.2,0.4673]
[1763633324660,3.33025515,3002.8,3002.2,0.4673]
[1763633324867,0.113,3002.7,3002.2,0.4673]
[1763633325067,0.113,3002.7,3002.1,0.1847]
[1763633325694,4.70181776,3002.8,3002.1,3.51567549]
[1763633325924,0.90699264,3002.8,3002.2,0.4673]
[1763633326223,0.113,3002.7,3002.2,1.19869771]
[1763633326437,0.113,3002.6,3002.3,0.4673]
[1763633327293,0.113,3002.6,3002.2,0.73139771]
[1763633327721,0.113,3002.6,3002.1,3.51569654]
[1763633327933,0.4646,3002.5,3002.0,3.33111259]
[1763633328224,0.4638,3002.5,3001.9,3.33221842]
[1763633329325,0.4638,3002.5,3001.9,0.001]
[1763633329524,0.4638,3002.5,3001.9,3.332222]
[1763633329688,0.113,3002.4,3001.9,3.332222]
[1763633329895,0.113,3002.4,3001.9,4.04530711]
[1763633331031,0.90699264,3002.7,3002.3,0.4938]
[1763633331198,0.113,3002.6,3002.3,0.4938]
[1763633331893,3.44350249,3002.6,3002.3,0.4938]
[1763633332515,0.113,3002.5,3002.1,0.1855]
[1763633332689,0.4609,3002.2,3001.9,0.001]
[1763633333128,0.113,3002.1,3001.9,0.001]
[1763633333836,0.4609,3002.0,3001.9,0.001]
[1763633335031,4.23780177,3002.3,3001.9,0.4948]
[1763633335213,0.113,3002.2,3001.9,0.4948]
[1763633335601,0.113,3002.1,3001.9,0.4948]
[1763633336036,3.33089884,3002.2,3001.9,0.4948]
[1763633336333,0.113,3002.0,3001.9,0.4948]
[1763633336940,0.113,3002.0,3001.9,0.001]
[1763633337448,4.23782725,3002.3,3001.9,0.001]
[1763633337652,0.5739,3002.0,3001.9,0.001]
[1763633338147,1.0385,3002.0,3001.9,0.001]
[1763633339323,4.36961259,3002.0,3001.9,0.001]
[1763633340005,4.67705021,3002.0,3001.9,0.001]
[1763633340414,6.69901994,3002.0,3001.9,0.001]
[1763633341131,6.89181994,3002.0,3001.9,0.001]
[1763633342139,2.57760335,3002.0,3001.9,0.001]
[1763633342338,5.11944285,3002.0,3001.9,0.001]
[1763633342545,5.58404285,3002.0,3001.9,0.001]
[1763633342743,6.29334092,3002.0,3001.9,0.001]
[1763633343040,6.29333442,3002.0,3001.9,0.001]
[1763633343209,5.58404285,3002.0,3001.9,0.001]
[1763633343619,2.25293026,3002.0,3001.9,0.001]
[1763633344137,5.58404285,3002.0,3001.9,0.001]
[1763633344722,6.69857581,3002.0,3001.9,0.001]
[1763633345020,6.58557581,3002.0,3001.9,0.001]
[1763633345223,6.69857581,3002.0,3001.9,0.001]
[1763633345548,6.88267581,3002.0,3001.9,0.001]
[1763633345758,6.88268463,3002.0,3001.9,0.001]
[1763633346469,6.76968463,3002.0,3001.9,0.001]
[1763633346674,6.88268463,3002.0,3001.9,0.001]
[1763633347030,6.36418063,3002.0,3001.9,0.001]
[1763633347261,6.3210893,3002.0,3001.9,0.001]
[1763633347465,5.61213235,3002.0,3001.9,0.001]
[1763633347643,6.32110677,3002.0,3001.9,0.001]
[1763633348647,6.32102134,3002.0,3001.9,0.001]
[1763633352168,6.32022134,3002.0,3001.9,0.001]
[1763633352760,5.58324285,3002.0,3001.9,0.001]
[1763633352957,11.09532555,3002.0,3001.9,0.001]
[1763633353571,10.38659593,3002.0,3001.9,0.001]
[1763633354502,5.00564285,3002.0,3001.9,0.001]
[1763633354809,10.27549593,3002.0,3001.9,0.001]
[1763633355109,10.38849593,3002.0,3001.9,0.001]
[1763633355462,11.09778509,3002.0,3001.9,0.001]
[1763633356199,11.50328909,3002.0,3001.9,0.001]
[1763633356365,1.31249664,3001.9,3001.5,0.001]
[1763633356562,0.90699264,3001.4,2999.8,0.4559]
[1763633356882,0.4565,3000.5,2999.8,0.4559]
[1763633357086,0.113,3000.4,2999.8,0.4559]
[1763633357759,0.4552,3000.1,2999.5,0.1964]
[1763633357966,0.4552,3000.1,2999.0,0.1942]
[1763633357967,0.113,3000.0,2999.2,0.4559]
[1763633358219,0.3019,2999.9,2999.2,0.4559]
[1763633358511,0.90699264,2999.6,2999.1,0.4559]
[1763633358707,0.113,2999.5,2999.1,0.4559]
[1763633359061,0.1889,2999.9,2999.4,0.4611]
[1763633359263,0.113,2999.8,2999.1,0.4559]
[1763633360142,0.113,2999.8,2998.5,0.03335]
[1763633360143,0.405504,2999.5,2998.5,0.03335]
[1763633360321,0.1889,2998.5,2997.6,0.4559]
[1763633360490,0.1889,2998.5,2997.6,0.6523]
[1763633360491,0.90699264,2998.4,2997.6,0.6523]
[1763633360694,0.90699264,2998.8,2998.4,0.4611]
[1763633361009,0.4665,2998.7,2998.1,0.4559]
[1763633361384,0.4665,2998.7,2997.7,0.5689]
[1763633361718,0.4665,2998.7,2997.8,0.41012835]
[1763633362311,0.405504,2998.6,2997.7,0.4559]
[1763633362696,0.90699264,2998.4,2997.7,0.4559]
[1763633362896,1.01999264,2998.4,2997.7,0.4559]
[1763633363226,1.48649264,2998.4,2997.7,0.4559]
[1763633363799,0.405504,2998.3,2997.6,0.1964]
[1763633364102,0.405504,2998.3,2996.5,0.4559]
[1763633364103,0.6549,2997.7,2996.5,0.4559]
[1763633364423,0.3816,2997.3,2996.1,3.3376723]
[1763633364586,0.3816,2997.3,2995.9,3.33785502]
[1763633364587,0.90699264,2997.0,2996.2,0.80930723]
[1763633364790,1.01999264,2997.2,2996.2,7.13099905]
[1763633364992,0.90699264,2997.5,2997.1,0.6209]
[1763633365256,3.63782565,2997.7,2995.5,0.37169094]
[1763633365257,0.4022,2997.2,2995.5,0.37169094]
[1763633365544,0.88585125,2998.9,2997.6,0.6575]
[1763633365545,3.52346071,2998.9,2997.6,0.6575]
[1763633365747,0.1889,2998.9,2998.1,0.4611]
[1763633366061,0.3019,2999.8,2998.8,0.6575]
[1763633366206,0.59488049,2999.6,2998.9,0.5741]
[1763633366533,1.50187313,2999.6,2998.9,0.5741]
[1763633366717,0.59488049,2999.6,2998.9,0.5741]
[1763633366891,0.59488049,2999.6,2998.9,0.5241]
[1763633367223,0.1889,2999.8,2999.0,0.4559]
[1763633367425,0.4665,3000.0,2999.0,0.4559]
[1763633367426,0.04167083,2999.7,2999.1,0.113]
[1763633367995,0.04167083,2999.7,2999.2,0.113]
[1763633368229,0.4665,2999.9,2999.0,0.4559]
[1763633368435,0.04166944,2999.8,2999.1,0.113]
[1763633368636,3.3336667,2999.7,2999.1,0.113]
[1763633368820,0.90699264,2999.6,2999.0,0.4559]
[1763633368992,0.04167222,2999.6,2999.1,0.113]
[1763633369187,1.41516486,2999.6,2998.8,0.1964]
[1763633369407,1.37349264,2999.6,2998.8,0.1964]
[1763633369941,0.1889,3000.2,2999.5,0.4749]
[1763633370097,0.1889,3000.2,2999.6,0.4749]
[1763633370292,1.09589264,3000.2,2999.6,0.4749]
[1763633370489,0.90699264,3000.1,2999.6,0.4749]
[1763633370821,4.33398737,3000.4,2999.6,3.8086474]
[1763633371133,0.90699264,3000.3,2999.7,0.4587]
[1763633371335,0.90699264,3000.3,2999.6,0.4749]
[1763633371904,0.90699264,3000.3,2999.6,3.80862482]
[1763633372245,0.90699264,3000.3,2999.6,0.9336]
[1763633372601,3.33311112,3000.2,2999.6,0.9336]
[1763633372898,0.90699264,3000.1,2999.6,0.9336]
[1763633373099,0.90699264,3000.1,2999.2,3.79285217]
[1763633373100,0.54126666,3000.0,2999.2,3.79285217]
[1763633373315,0.54126666,3000.0,2999.3,0.113]
[1763633373514,0.1939,2999.9,2999.3,0.113]
[1763633373807,0.94865791,3000.1,2999.4,0.5717]
[1763633374011,0.94865791,3000.1,2999.4,0.4587]
[1763633374231,0.6079,2999.5,2999.0,0.001]
[1763633374420,0.4996,2999.4,2999.0,0.001]
[1763633374727,3.83366015,2999.4,2999.0,0.001]
[1763633375235,4.24078329,2999.6,2999.1,0.4587]
[1763633375435,0.90699264,2999.6,2999.0,0.001]
[1763633375728,0.414,2999.1,2999.0,0.001]
[1763633376096,0.9128,2999.1,2999.0,0.001]
[1763633376301,0.912,2999.1,2999.0,0.001]
[1763633376818,5.15332627,2999.1,2999.0,0.001]
[1763633377011,5.19500544,2999.1,2999.0,0.001]
[1763633378614,5.55883027,2999.1,2999.0,0.001]
[1763633378938,5.60050944,2999.1,2999.0,0.001]
[1763633379744,5.55883027,2999.1,2999.0,0.001]
[1763633380306,1.31249664,2999.0,2998.8,0.001]
[1763633380544,1.31249664,2999.0,2997.2,0.4676]
[1763633380545,1.31249664,2998.8,2997.2,0.4676]
[1763633380715,1.31249664,2998.6,2997.2,0.4676]
[1763633380915,0.113,2998.5,2997.2,0.4676]
[1763633381240,0.405504,2998.3,2997.2,0.4676]
[1763633381616,0.405504,2998.1,2997.2,0.4676]
[1763633382030,0.405504,2998.1,2997.2,3.80403248]
[1763633382235,0.4916,2998.2,2997.2,7.14047983]
[1763633382434,0.113,2998.5,2997.3,0.4676]
[1763633382435,0.405504,2998.4,2997.3,0.4676]
[1763633382633,0.405504,2998.4,2997.4,0.71404798]
[1763633382949,0.90699264,2998.7,2998.3,0.4744]
[1763633383130,0.90699264,2998.7,2997.7,0.113]
[1763633383311,0.897104,2998.6,2997.6,0.4676]
[1763633383513,0.897104,2998.6,2997.3,0.4676]
[1763633383745,0.4916,2998.5,2997.3,0.4676]
[1763633384044,0.4916,2998.5,2997.3,0.5806]
[1763633384233,0.405504,2998.4,2997.3,0.4676]
[1763633384735,0.4916,2998.3,2997.3,0.4676]
[1763633384920,0.90699264,2998.1,2997.3,0.4676]